lending/lending_fUSD_20240219
["ID","MTS","AMOUNT","RATE_DAILY","PERIOD"]
[314500909,1708377127856,-2820.04,0.00049041,30]
[314500910,1708377127865,-1201.01,0.00049041,30]
[314500911,1708377127875,-335.72,0.00049041,30]
[314500912,1708377127885,-1773.34,0.00049041,30]
[314500913,1708377127894,-500.0,0.00049041,30]
[314500914,1708377127904,-2704.66,0.00049041,30]
[314500915,1708377127914,-582.39,0.00049041,30]
[314500916,1708377127923,-1527.67,0.00049041,30]
[314500917,1708377127933,-3977.18,0.00049041,30]
[314500918,1708377127945,-500.0,0.00049041,30]
[314500919,1708377127954,-825.53,0.00049041,30]
[314500920,1708377127964,-898.27,0.00049041,30]
[314500921,1708377127973,-2898.65,0.00049041,30]
[314500922,1708377127982,-500.0,0.00049041,30]
[314500923,1708377127991,-1746.66,0.00049041,30]
[314500924,1708377128001,-2731.53,0.00049041,30]
[314500925,1708377128011,-586.0,0.00049041,30]
[314500926,1708377128020,-968.66,0.00049041,30]
[314500927,1708377128029,-500.0,0.00049041,30]
[314500928,1708377128039,-500.0,0.00049041,30]
[314500929,1708377128048,-857.25,0.00049041,30]
[314500930,1708377128057,-500.0,0.00049041,30]
[314500931,1708377128066,-1486.37,0.00049041,30]
[314500932,1708377128076,-1149.63,0.00049041,30]
[314500933,1708377128086,-1388.67,0.00049041,30]
[314500934,1708377128095,-1224.19,0.00049041,30]
[314500935,1708377128105,-1243.1,0.00049041,30]
[314500936,1708377128114,-740.69,0.00049041,30]
[314500937,1708377128124,-1119.06,0.00049041,30]
[314500938,1708377128133,-500.0,0.00049041,30]
[314500939,1708377128142,-500.0,0.00049041,30]
[314500940,1708377128152,-500.0,0.00049041,30]
[314500941,1708377128161,-995.4,0.00049041,30]
[314500942,1708377128171,-780.29,0.00049041,30]
[314500943,1708377128180,-500.0,0.00049041,30]
[314500944,1708377128190,-1750.39,0.00049041,30]
[314500945,1708377128199,-734.28,0.00049041,30]
[314500946,1708377128209,-1107.14,0.00049041,30]
[314500947,1708377128218,-500.0,0.00049041,30]
[314500948,1708377128227,-8099.08,0.00049041,30]
[314500949,1708377128236,-500.0,0.00049041,30]
[314500950,1708377128246,-518.58,0.00049041,30]
[314500951,1708377128255,-575.48,0.00049041,30]
[314500952,1708377128264,-500.0,0.00049041,30]
[314500953,1708377128275,-1505.89,0.00049041,30]
[314500954,1708377128284,-3674.01,0.00049041,5]
[314500955,1708377128293,-182.51508742,0.00049051,7]
[314500956,1708377128302,-300.0,0.00049061,7]
[314500957,1708377128311,-150.0,0.00049072,7]
[314500958,1708377128321,-161.25919619,0.00049092,30]
[314500959,1708377128330,-150.0,0.00049117,7]
[314500960,1708377128338,-150.0,0.0004912,7]
[314500961,1708377128347,-161.25919619,0.00049124,30]
[314500962,1708377128357,-161.25919619,0.00049155,30]
[314500963,1708377128366,-150.0,0.00049165,7]
[314500964,1708377128375,-153.13804571,0.00049179,41]
[314500965,1708377128385,-8171.0,0.00049185,2]
[314500966,1708377128394,-2290.0,0.00049185,2]
[314500967,1708377128403,-159.2890037,0.00049213,30]
[314500968,1708377128412,-150.0,0.00049217,7]
[314500969,1708377128422,-150.0,0.00049224,7]
[314500970,1708377128431,-150.0,0.00049244,7]
[314500971,1708377128440,-150.0,0.00049249,7]
[314500972,1708377128450,-150.0,0.0004925,7]
[314500973,1708377128460,-150.0,0.00049268,7]
[314500974,1708377128471,-150.0,0.00049273,7]
[314500975,1708377128480,-150.0,0.00049281,7]
[314500976,1708377128490,-5000.0,0.000493,120]
[314500977,1708377128500,-151.0,0.00049305,14]
[314500978,1708377128510,-2039.93,0.00049314,30]
[314500979,1708377128520,-1605.07,0.00049314,30]
[314500980,1708377128529,-1090.94,0.00049314,30]
[314500981,1708377128538,-1161.62,0.00049314,30]
[314500982,1708377128547,-4690.89,0.00049314,30]
[314500983,1708377128558,-2224.42,0.00049314,30]
[314500984,1708377128567,-1819.91,0.00049314,30]
[314500985,1708377128577,-809.73,0.00049314,30]
[314500986,1708377128586,-590.34,0.00049314,30]
[314500987,1708377128595,-1319.16,0.00049314,30]
[314500988,1708377128605,-886.59,0.00049314,30]
[314500989,1708377128614,-1287.42,0.00049314,30]
[314500990,1708377128623,-1242.47,0.00049314,30]
[314500991,1708377128632,-924.48,0.00049314,30]
[314500992,1708377128641,-2026.93,0.00049314,30]
[314500993,1708377128652,-1086.95,0.00049314,30]
[314500994,1708377128662,-735.92,0.00049314,30]
[314500995,1708377128671,-878.99,0.00049314,30]
[314500996,1708377128681,-1756.54,0.00049314,30]
[314500997,1708377128691,-898.46,0.00049314,30]
[314500998,1708377128701,-500.0,0.00049314,30]
[314500999,1708377128711,-957.91,0.00049314,30]
[314501000,1708377128721,-500.0,0.00049314,30]
[314501001,1708377128730,-1426.52,0.00049314,30]
[314501002,1708377128740,-1623.95,0.00049314,30]
[314501003,1708377128750,-1041.23,0.00049314,30]
[314501004,1708377128760,-1313.08,0.00049314,30]
[314501005,1708377128778,-2030.96,0.00049314,30]
[314501006,1708377128799,-500.0,0.00049314,30]
[314501007,1708377128808,-583.37,0.00049314,30]
[314501008,1708377128817,-493.42837504,0.00049315,30]
[314501009,1708377128827,-500.0,0.00049315,30]
[314501010,1708377128836,-500.0,0.00049315,30]
[314501011,1708377128845,-500.0,0.00049315,30]
[314501012,1708377128855,-500.0,0.00049315,30]
[314501013,1708377128865,-500.0,0.00049315,30]
[314501014,1708377128874,-500.0,0.00049315,30]
[314501015,1708377128883,-500.0,0.00049315,30]
[314501016,1708377128893,-602.01,0.00049315,30]
[314501017,1708377128902,-500.0,0.00049315,30]
[314501018,1708377128911,-500.0,0.00049315,30]
[314501019,1708377128921,-512.36,0.00049315,30]
[314501020,1708377128930,-732.56,0.00049315,30]
[314501021,1708377128940,-500.0,0.00049315,30]
[314501022,1708377128949,-605.18,0.00049315,30]
[314501023,1708377128959,-605.18,0.00049315,30]
[314501024,1708377128968,-605.18,0.00049315,30]
[314501025,1708377128977,-605.18,0.00049315,30]
[314501026,1708377128987,-605.18,0.00049315,30]
[314501027,1708377128996,-605.18,0.00049315,30]
[314501028,1708377129005,-605.18,0.00049315,30]
[314501029,1708377129015,-605.18,0.00049315,30]
[314501030,1708377129024,-605.18,0.00049315,30]
[314501031,1708377129033,-605.18,0.00049315,30]
[314501032,1708377129043,-605.18,0.00049315,30]
[314501033,1708377129052,-500.0,0.00049315,30]
[314501034,1708377129061,-573.89,0.00049315,30]
[314501035,1708377129070,-500.0,0.00049315,30]
[314501036,1708377129080,-500.0,0.00049315,30]
[314501037,1708377129089,-500.0,0.00049315,30]
[314501038,1708377129098,-500.0,0.00049315,30]
[314501039,1708377129107,-606.28,0.00049315,30]
[314501040,1708377129116,-1049.77,0.00049315,30]
[314501041,1708377129125,-500.0,0.00049315,30]
[314501042,1708377129134,-500.0,0.00049315,30]
[314501043,1708377129144,-500.0,0.00049315,30]
[314501044,1708377129153,-500.0,0.00049315,30]
[314501045,1708377129162,-500.0,0.00049315,30]
[314501046,1708377129171,-500.0,0.00049315,30]
[314501047,1708377129181,-500.0,0.00049315,30]
[314501048,1708377129190,-500.0,0.00049315,30]
[314501049,1708377129199,-500.0,0.00049315,30]
[314501050,1708377129208,-500.0,0.00049315,30]
[314501051,1708377129218,-500.0,0.00049315,30]
[314501052,1708377129227,-544.97,0.00049315,30]
[314501053,1708377129237,-500.0,0.00049315,30]
[314501054,1708377129246,-500.0,0.00049315,30]
[314501055,1708377129255,-500.0,0.00049315,30]
[314501056,1708377129264,-500.0,0.00049315,30]
[314501057,1708377129274,-500.0,0.00049315,30]
[314501058,1708377129283,-500.0,0.00049315,30]
[314501059,1708377129292,-500.0,0.00049315,30]
[314501060,1708377129301,-500.0,0.00049315,30]
[314501061,1708377129311,-500.0,0.00049315,30]
[314501062,1708377129320,-500.0,0.00049315,30]
[314501063,1708377129330,-500.0,0.00049315,30]
[314501064,1708377129340,-505.06,0.00049315,30]
[314501065,1708377129349,-500.0,0.00049315,30]
[314501066,1708377129358,-1141.6,0.00049315,30]
[314501067,1708377129367,-500.0,0.00049315,30]
[314501068,1708377129376,-500.0,0.00049315,30]
[314501069,1708377129386,-500.0,0.00049315,30]
[314501070,1708377129395,-500.0,0.00049315,30]
[314501071,1708377129404,-407.2,0.00049315,30]
[314501072,1708377129413,-500.0,0.00049315,30]
[314501073,1708377129423,-530.25794895,0.00049315,30]
[314501074,1708377129432,-567.74,0.00049315,30]
[314501075,1708377129441,-777.32,0.00049315,2]
[314501076,1708377129450,-500.0,0.00049315,30]
[314501077,1708377129459,-603.14,0.00049315,30]
[314501078,1708377129470,-500.0,0.00049315,30]
[314501079,1708377129481,-500.0,0.00049315,30]
[314501080,1708377129490,-500.0,0.00049315,30]
[314501081,1708377129500,-500.0,0.00049315,30]
[314501082,1708377129511,-500.0,0.00049315,30]
[314501083,1708377129521,-750.4,0.00049315,30]
[314501084,1708377129529,-599.04,0.00049315,30]
[314501085,1708377129538,-500.0,0.00049315,30]
[314501086,1708377129548,-500.0,0.00049315,30]
[314501087,1708377129557,-500.0,0.00049315,30]
[314501088,1708377129566,-500.0,0.00049315,30]
[314501089,1708377129576,-500.0,0.00049315,30]
[314501090,1708377129586,-500.0,0.00049315,30]
[314501091,1708377129595,-500.0,0.00049315,30]
[314501092,1708377129604,-500.0,0.00049315,30]
[314501093,1708377129613,-500.0,0.00049315,30]
[314501094,1708377129622,-690.28,0.00049315,30]
[314501095,1708377129632,-500.0,0.00049315,30]
[314501096,1708377129643,-784.44,0.00049315,30]
[314501097,1708377129653,-500.0,0.00049315,30]
[314501098,1708377129662,-533.46,0.00049315,30]
[314501099,1708377129672,-500.0,0.00049315,30]
[314501100,1708377129681,-712.44,0.00049315,30]
[314501101,1708377129691,-568.95,0.00049315,30]
[314501102,1708377129700,-543.64,0.00049315,30]
[314501103,1708377129710,-500.0,0.00049315,30]
[314501104,1708377129719,-500.0,0.00049315,30]
[314501105,1708377129729,-513.43,0.00049315,30]
[314501106,1708377129738,-1175.74,0.00049315,30]
[314501107,1708377129747,-500.0,0.00049315,30]
[314501108,1708377129756,-500.0,0.00049315,30]
[314501109,1708377129766,-500.0,0.00049315,30]
[314501110,1708377129776,-500.0,0.00049315,30]
[314501111,1708377129785,-500.0,0.00049315,30]
[314501112,1708377129796,-500.0,0.00049315,30]
[314501113,1708377129805,-500.0,0.00049315,30]
[314501114,1708377129815,-500.0,0.00049315,30]
[314501115,1708377129825,-500.0,0.00049315,30]
[314501116,1708377129836,-500.0,0.00049315,30]
[314501117,1708377129846,-500.0,0.00049315,30]
[314501118,1708377129855,-500.0,0.00049315,30]
[314501119,1708377129865,-500.0,0.00049315,30]
[314501120,1708377129874,-500.0,0.00049315,30]
[314501121,1708377129883,-500.0,0.00049315,30]
[314501122,1708377129892,-500.0,0.00049315,30]
[314501123,1708377129901,-500.0,0.00049315,30]
[314501124,1708377129910,-500.0,0.00049315,30]
[314501125,1708377129920,-291.3217652,0.00049315,30]
[314501126,1708377129929,-500.0,0.00049315,30]
[314501127,1708377129938,-500.0,0.00049315,30]
[314501128,1708377129947,-523.21,0.00049315,30]
[314501129,1708377129956,-521.63,0.00049315,30]
[314501130,1708377129965,-500.0,0.00049315,30]
[314501131,1708377129974,-500.0,0.00049315,30]
[314501132,1708377129983,-500.0,0.00049315,30]
[314501133,1708377129992,-520.60181826,0.00049315,30]
[314501134,1708377130001,-513.88,0.00049315,30]
[314501135,1708377130011,-500.0,0.00049315,30]
[314501136,1708377130020,-500.0,0.00049315,30]
[314501137,1708377130030,-500.0,0.00049315,30]
[314501138,1708377130039,-660.98,0.00049315,30]
[314501139,1708377130049,-500.0,0.00049315,30]
[314501140,1708377130058,-500.0,0.00049315,30]
[314501141,1708377130067,-500.0,0.00049315,30]
[314501142,1708377130076,-500.0,0.00049315,30]
[314501143,1708377130087,-588.08,0.00049315,30]
[314501144,1708377130097,-500.0,0.00049315,30]
[314501145,1708377130107,-500.0,0.00049315,30]
[314501146,1708377130116,-446.57627318,0.00049315,30]
[314501147,1708377130125,-500.0,0.00049315,30]
[314501148,1708377130134,-611.78,0.00049315,30]
[314501149,1708377130143,-597.62,0.00049315,30]
[314501150,1708377130152,-555.82,0.00049315,30]
[314501151,1708377130161,-500.0,0.00049315,30]
[314501152,1708377130170,-500.0,0.00049315,30]
[314501153,1708377130180,-500.0,0.00049315,30]
[314501154,1708377130190,-543.3,0.00049315,30]
[314501155,1708377130199,-918.19,0.00049315,30]
[314501156,1708377130208,-500.0,0.00049315,30]
[314501157,1708377130217,-578.31,0.00049315,30]
[314501158,1708377130226,-500.0,0.00049315,30]
[314501159,1708377130235,-500.0,0.00049315,30]
[314501160,1708377130245,-500.0,0.00049315,30]
[314501161,1708377130254,-527.96,0.00049315,30]
[314501162,1708377130263,-500.0,0.00049315,30]
[314501163,1708377130272,-477.29,0.00049315,30]
[314501164,1708377130281,-500.0,0.00049315,30]
[314501165,1708377130291,-500.0,0.00049315,30]
[314501166,1708377130300,-500.0,0.00049315,30]
[314501167,1708377130309,-553.98,0.00049315,30]
[314501168,1708377130318,-500.0,0.00049315,30]
[314501169,1708377130328,-500.0,0.00049315,30]
[314501170,1708377130338,-500.0,0.00049315,30]
[314501171,1708377130347,-529.69,0.00049315,30]
[314501172,1708377130356,-500.0,0.00049315,30]
[314501173,1708377130365,-500.0,0.00049315,30]
[314501174,1708377130374,-500.0,0.00049315,30]
[314501175,1708377130383,-500.0,0.00049315,30]
[314501176,1708377130392,-556.74,0.00049315,30]
[314501177,1708377130401,-500.0,0.00049315,30]
[314501178,1708377130411,-692.58,0.00049315,30]
[314501179,1708377130420,-427.11640524,0.00049315,30]
[314501180,1708377130429,-552.5,0.00049315,30]
[314501181,1708377130438,-500.0,0.00049315,30]
[314501182,1708377130447,-500.0,0.00049315,30]
[314501183,1708377130457,-500.0,0.00049315,30]
[314501184,1708377130466,-500.0,0.00049315,30]
[314501185,1708377130479,-591.77,0.00049315,30]
[314501186,1708377130488,-500.0,0.00049315,30]
[314501187,1708377130498,-500.0,0.00049315,30]
[314501188,1708377130694,-664.26,0.00049315,30]
[314501189,1708377130704,-500.0,0.00049315,30]
[314501190,1708377130713,-283.88089301,0.00049315,30]
[314501191,1708377130723,-500.0,0.00049315,30]
[314501192,1708377130732,-280.51562914,0.00049315,30]
[314501193,1708377130741,-646.62,0.00049315,30]
[314501194,1708377130751,-635.19,0.00049315,30]
[314501195,1708377130760,-514.25,0.00049315,30]
[314501196,1708377130769,-667.9,0.00049315,30]
[314501197,1708377130778,-538.23,0.00049315,30]
[314501198,1708377130787,-500.0,0.00049315,30]
[314501199,1708377130797,-500.0,0.00049315,30]
[314501200,1708377130806,-516.68,0.00049315,30]
[314501201,1708377130816,-615.42,0.00049315,30]
[314501202,1708377130825,-500.0,0.00049315,30]
[314501203,1708377130834,-500.0,0.00049315,30]
[314501204,1708377130843,-500.0,0.00049315,30]
[314501205,1708377130852,-500.0,0.00049315,30]
[314501206,1708377130862,-617.0,0.00049315,30]
[314501207,1708377130871,-544.62,0.00049315,30]
[314501208,1708377130881,-500.0,0.00049315,30]
[314501209,1708377130890,-500.0,0.00049315,30]
[314501210,1708377130899,-500.0,0.00049315,30]
[314501211,1708377130908,-500.0,0.00049315,30]
[314501212,1708377130918,-500.0,0.00049315,30]
[314501213,1708377130927,-500.0,0.00049315,30]
[314501214,1708377130936,-500.0,0.00049315,30]
[314501215,1708377130946,-1052.96,0.00049315,30]
[314501216,1708377130956,-553.52,0.00049315,30]
[314501217,1708377130965,-500.0,0.00049315,30]
[314501218,1708377130974,-566.64,0.00049315,30]
[314501219,1708377130984,-500.0,0.00049315,30]
[314501220,1708377130993,-500.0,0.00049315,30]
[314501221,1708377131002,-500.0,0.00049315,30]
[314501222,1708377131011,-500.0,0.00049315,30]
[314501223,1708377131020,-500.0,0.00049315,30]
[314501224,1708377131029,-519.09,0.00049315,30]
[314501225,1708377131038,-772.36,0.00049315,30]
[314501226,1708377131048,-649.93,0.00049315,30]
[314501227,1708377131057,-500.0,0.00049315,30]
[314501228,1708377131066,-500.0,0.00049315,30]
[314501229,1708377131076,-500.0,0.00049315,30]
[314501230,1708377131085,-558.08,0.00049315,30]
[314501231,1708377131094,-767.53,0.00049315,30]
[314501232,1708377131103,-677.61,0.00049315,30]
[314501233,1708377131113,-500.0,0.00049315,30]
[314501234,1708377131122,-521.79,0.00049315,30]
[314501235,1708377131131,-500.0,0.00049315,30]
[314501236,1708377131141,-594.14,0.00049315,30]
[314501237,1708377131150,-500.0,0.00049315,30]
[314501238,1708377131159,-781.41,0.00049315,30]
[314501239,1708377131169,-500.0,0.00049315,30]
[314501240,1708377131178,-745.38,0.00049315,30]
[314501241,1708377131188,-500.0,0.00049315,30]
[314501242,1708377131197,-500.0,0.00049315,30]
[314501243,1708377131208,-230.11,0.00049315,30]
[314501244,1708377131217,-500.0,0.00049315,30]
[314501245,1708377131226,-1082.3,0.00049315,30]
[314501246,1708377131235,-567.69133469,0.00049315,30]
[314501247,1708377131245,-500.0,0.00049315,30]
[314501248,1708377131254,-627.94,0.00049315,30]
[314501249,1708377131263,-500.0,0.00049315,30]
[314501250,1708377131272,-505.9,0.00049315,30]
[314501251,1708377131281,-500.0,0.00049315,30]
[314501252,1708377131291,-500.0,0.00049315,30]
[314501253,1708377131300,-529.79,0.00049315,30]
[314501254,1708377131309,-536.14,0.00049315,30]
[314501255,1708377131318,-3104.74,0.00049315,30]
[314501256,1708377131327,-574.32,0.00049315,30]
[314501257,1708377131337,-523.82,0.00049315,30]
[314501258,1708377131347,-557.18,0.00049315,30]
[314501259,1708377131357,-1017.28,0.00049315,30]
[314501260,1708377131367,-500.0,0.00049315,30]
[314501261,1708377131376,-2181.83,0.00049315,30]
[314501262,1708377131385,-804.05,0.00049315,30]
[314501263,1708377131394,-500.0,0.00049315,30]
[314501264,1708377131403,-837.03,0.00049315,30]
[314501265,1708377131412,-500.0,0.00049315,30]
[314501266,1708377131422,-1389.72,0.00049315,30]
[314501267,1708377131432,-654.5,0.00049315,30]
[314501268,1708377131441,-500.44,0.00049315,30]
[314501269,1708377131451,-771.23,0.00049315,30]
[314501270,1708377131464,-639.08,0.00049315,30]
[314501271,1708377131474,-500.0,0.00049315,30]
[314501272,1708377131483,-604.81,0.00049315,30]
[314501273,1708377131493,-500.0,0.00049315,30]
[314501274,1708377131504,-1426.77,0.00049315,30]
[314501275,1708377131514,-527.43,0.00049315,30]
[314501276,1708377131524,-500.0,0.00049315,30]
[314501277,1708377131533,-1745.38,0.00049315,30]
[314501278,1708377131545,-1075.7,0.00049315,30]
[314501279,1708377131554,-1268.71,0.00049315,30]
[314501280,1708377131563,-886.05,0.00049315,30]
[314501281,1708377131573,-500.0,0.00049315,30]
[314501282,1708377131583,-899.22,0.00049315,30]
[314501283,1708377131593,-521.02304328,0.00049315,30]
[314501284,1708377131602,-2678.83,0.00049315,30]
[314501285,1708377131611,-1833.32,0.00049315,30]
[314501286,1708377131621,-2702.11,0.00049315,30]
[314501287,1708377131631,-10950.38,0.00049315,30]
[314501288,1708377131640,-500.0,0.00049315,30]
[314501289,1708377131649,-741.32,0.00049315,30]
[314501290,1708377131658,-3140.24,0.00049315,30]
[314501291,1708377131668,-500.0,0.00049315,30]
[314501292,1708377131677,-500.0,0.00049315,30]
[314501293,1708377131688,-1835.49,0.00049315,30]
[314501294,1708377131697,-503.56,0.00049315,30]
[314501295,1708377131707,-694.62,0.00049315,30]
[314501296,1708377131717,-500.0,0.00049315,30]
[314501297,1708377131726,-20395.47,0.00049315,30]
[314501298,1708377131737,-2331.98,0.00049315,30]
[314501299,1708377131746,-599.22,0.00049315,30]
[314501300,1708377131756,-1530.72,0.00049315,30]
[314501301,1708377131765,-789.92,0.00049315,30]
[314501302,1708377131774,-780.99,0.00049315,30]
[314501303,1708377131783,-500.0,0.00049315,30]
[314501304,1708377131793,-500.0,0.00049315,30]
[314501305,1708377131802,-500.0,0.00049315,30]
[314501306,1708377131812,-2037.65,0.00049315,30]
[314501307,1708377131822,-562.3,0.00049315,30]
[314501308,1708377131831,-796.83,0.00049315,30]
[314501309,1708377131840,-1380.27,0.00049315,30]
[314501310,1708377131850,-1316.81,0.00049315,30]
[314501311,1708377131860,-677.42,0.00049315,30]
[314501312,1708377131869,-515.48,0.00049315,30]
[314501313,1708377131879,-3662.65,0.00049315,30]
[314501314,1708377131888,-500.0,0.00049315,30]
[314501315,1708377131898,-500.0,0.00049315,30]
[314501316,1708377131908,-1284.51,0.00049315,30]
[314501317,1708377131917,-679.93,0.00049315,30]
[314501318,1708377131927,-768.65,0.00049315,30]
[314501319,1708377131937,-500.0,0.00049315,30]
[314501320,1708377131947,-500.0,0.00049315,30]
[314501321,1708377131957,-2893.51,0.00049315,30]
[314501322,1708377131966,-5456.49,0.00049315,30]
[314501323,1708377131975,-500.0,0.00049315,30]
[314501324,1708377131984,-500.0,0.00049315,30]
[314501325,1708377131994,-2571.27,0.00049315,30]
[314501326,1708377132003,-826.56,0.00049315,30]
[314501327,1708377132013,-500.0,0.00049315,30]
[314501328,1708377132022,-1599.05,0.00049315,30]
[314501329,1708377132032,-500.0,0.00049315,30]
[314501330,1708377132041,-500.0,0.00049315,30]
[314501331,1708377132050,-721.27,0.00049315,30]
[314501332,1708377132059,-2039.63,0.00049315,30]
[314501333,1708377132069,-2095.21,0.00049315,30]
[314501334,1708377132078,-727.3,0.00049315,30]
[314501335,1708377132088,-500.0,0.00049315,30]
[314501336,1708377132098,-509.58227036,0.00049315,30]
[314501337,1708377132108,-500.0,0.00049315,30]
[314501338,1708377132116,-846.21,0.00049315,30]
[314501339,1708377132126,-1638.65,0.00049315,30]
[314501340,1708377132135,-1395.59,0.00049315,30]
[314501341,1708377132145,-586.56,0.00049315,30]
[314501342,1708377132154,-1364.92,0.00049315,30]
[314501343,1708377132165,-1945.02,0.00049315,30]
[314501344,1708377132174,-628.31,0.00049315,30]
[314501345,1708377132184,-500.0,0.00049315,30]
[314501346,1708377132193,-500.0,0.00049315,30]
[314501347,1708377132203,-2020.6,0.00049315,30]
[314501348,1708377132213,-500.0,0.00049315,30]
[314501349,1708377132223,-500.0,0.00049315,30]
[314501350,1708377132233,-500.0,0.00049315,30]
[314501351,1708377132242,-2298.57,0.00049315,30]
[314501352,1708377132252,-500.0,0.00049315,30]
[314501353,1708377132261,-500.0,0.00049315,30]
[314501354,1708377132270,-1046.88,0.00049315,30]
[314501355,1708377132279,-1430.94,0.00049315,30]
[314501356,1708377132288,-500.0,0.00049315,30]
[314501357,1708377132297,-500.0,0.00049315,30]
[314501358,1708377132306,-990.31,0.00049315,30]
[314501359,1708377132316,-941.5,0.00049315,30]
[314501360,1708377132325,-11885.76,0.00049315,30]
[314501361,1708377132335,-2710.69,0.00049315,30]
[314501362,1708377132345,-500.0,0.00049315,30]
[314501363,1708377132354,-8772.79,0.00049315,30]
[314501364,1708377132363,-1007.39,0.00049315,30]
[314501365,1708377132373,-500.0,0.00049315,30]
[314501366,1708377132382,-500.0,0.00049315,30]
[314501367,1708377132392,-877.27,0.00049315,30]
[314501368,1708377132401,-774.82,0.00049315,30]
[314501369,1708377132410,-1539.61,0.00049315,30]
[314501370,1708377132421,-740.11,0.00049315,30]
[314501371,1708377132431,-500.0,0.00049315,30]
[314501372,1708377132440,-530.62,0.00049315,30]
[314501373,1708377132449,-500.0,0.00049315,30]
[314501374,1708377132459,-1422.42,0.00049315,30]
[314501375,1708377132470,-500.0,0.00049315,30]
[314501376,1708377132482,-500.0,0.00049315,30]
[314501377,1708377132491,-2610.19,0.00049315,30]
[314501378,1708377132503,-1255.72,0.00049315,30]
[314501379,1708377132514,-1016.32,0.00049315,30]
[314501380,1708377132524,-500.0,0.00049315,30]
[314501381,1708377132533,-1233.1,0.00049315,30]
[314501382,1708377132543,-5037.62,0.00049315,30]
[314501383,1708377132553,-1545.99,0.00049315,30]
[314501384,1708377132562,-771.45,0.00049315,30]
[314501385,1708377132572,-996.35,0.00049315,30]
[314501386,1708377132582,-753.57,0.00049315,30]
[314501387,1708377132591,-500.0,0.00049315,30]
[314501388,1708377132601,-1249.41,0.00049315,30]
[314501389,1708377132610,-500.0,0.00049315,30]
[314501390,1708377132619,-609.95,0.00049315,30]
[314501391,1708377132629,-500.0,0.00049315,80]
[314501392,1708377132638,-3806.98,0.00049315,30]
[314501393,1708377132647,-4368.41,0.00049315,30]
[314501394,1708377132657,-1205.55,0.00049315,30]
[314501395,1708377132667,-1108.98,0.00049315,30]
[314501396,1708377132676,-500.0,0.00049315,30]
[314501397,1708377132686,-500.0,0.00049315,30]
[314501398,1708377132695,-745.48,0.00049315,30]
[314501399,1708377132705,-500.0,0.00049315,30]
[314501400,1708377132716,-500.0,0.00049315,30]
[314501401,1708377132725,-761.98,0.00049315,30]
[314501402,1708377132735,-1070.44,0.00049315,30]
[314501403,1708377132746,-2405.19,0.00049315,30]
[314501404,1708377132756,-1483.04,0.00049315,30]
[314501405,1708377132766,-656.25,0.00049315,30]
[314501406,1708377132775,-500.0,0.00049315,30]
[314501407,1708377132786,-4891.81,0.00049315,30]
[314501408,1708377132795,-703.9,0.00049315,30]